[Event "Betsys MČR v online bleskovém šachu 2021"]
[Site "Chess.com"]
[Date "2021.04.17"]
[Round "12"]
[White "Hollow_Head"]
[Black "TTCZ"]
[Result "0-1"]
[WhiteElo "1088"]
[BlackElo "1459"]
[TimeControl "180+1"]
[EndTime "10:59:12 PDT"]
[Termination "Uživatel TTCZ zvítězil matem"]

1. e4 {[%clk 0:02:59]} 1... e6 {[%clk 0:03:00.1]} 2. Nf3 {[%clk 0:02:58.5]} 2...
d5 {[%clk 0:03:01]} 3. exd5 {[%clk 0:02:58.8]} 3... exd5 {[%clk 0:02:59]} 4. g3
{[%clk 0:02:59.1]} 4... Nf6 {[%clk 0:02:59.2]} 5. Qe2+ {[%clk 0:02:59.4]} 5...
Be7 {[%clk 0:02:57.1]} 6. Bg2 {[%clk 0:02:59.2]} 6... Bg4 {[%clk 0:02:56.5]} 7.
O-O {[%clk 0:02:59.3]} 7... O-O {[%clk 0:02:56.1]} 8. d3 {[%clk 0:02:59.5]} 8...
c6 {[%clk 0:02:51.6]} 9. Bg5 {[%clk 0:02:58.5]} 9... h6 {[%clk 0:02:50.2]} 10.
Bxf6 {[%clk 0:02:58.6]} 10... Bxf6 {[%clk 0:02:50]} 11. h3 {[%clk 0:02:58.7]}
11... Bxf3 {[%clk 0:02:48.3]} 12. Qxf3 {[%clk 0:02:59.1]} 12... Bxb2 {[%clk
0:02:47.7]} 13. Nd2 {[%clk 0:02:57.2]} 13... Bxa1 {[%clk 0:02:46.4]} 14. Rxa1
{[%clk 0:02:58.1]} 14... Qf6 {[%clk 0:02:41.4]} 15. Qd1 {[%clk 0:02:48.1]} 15...
Nd7 {[%clk 0:02:33.5]} 16. Nf3 {[%clk 0:02:48.1]} 16... Rfe8 {[%clk 0:02:31.9]}
17. Qd2 {[%clk 0:02:46.7]} 17... Qxa1+ {[%clk 0:02:30]} 18. Bf1 {[%clk
0:02:44.9]} 18... Qxa2 {[%clk 0:02:23]} 19. Kg2 {[%clk 0:02:39.5]} 19... Nf6
{[%clk 0:02:21.7]} 20. Be2 {[%clk 0:02:39.4]} 20... b6 {[%clk 0:02:18.8]} 21. d4
{[%clk 0:02:39.5]} 21... Qa5 {[%clk 0:02:16.7]} 22. Qd3 {[%clk 0:02:33.6]} 22...
Re7 {[%clk 0:02:09.9]} 23. c4 {[%clk 0:02:28.9]} 23... Rae8 {[%clk 0:02:04.7]}
24. Ng1 {[%clk 0:02:25.9]} 24... dxc4 {[%clk 0:01:56.7]} 25. Qxc4 {[%clk
0:02:25.7]} 25... Qb5 {[%clk 0:01:50.5]} 26. Qxb5 {[%clk 0:02:21.4]} 26... cxb5
{[%clk 0:01:51.4]} 27. Bxb5 {[%clk 0:02:21.8]} 27... Nd5 {[%clk 0:01:44.7]} 28.
Bxe8 {[%clk 0:02:21.1]} 28... Rxe8 {[%clk 0:01:43.6]} 29. Nf3 {[%clk 0:02:21.7]}
29... g6 {[%clk 0:01:42.4]} 30. Ne5 {[%clk 0:02:21.5]} 30... Rxe5 {[%clk
0:01:40.5]} 31. dxe5 {[%clk 0:02:21.5]} 31... Kf8 {[%clk 0:01:40]} 32. f4 {[%clk
0:02:21.7]} 32... Ke7 {[%clk 0:01:39.9]} 33. Kf3 {[%clk 0:02:22.4]} 33... h5
{[%clk 0:01:39]} 34. Ke4 {[%clk 0:02:23.1]} 34... Ke6 {[%clk 0:01:38.7]} 35. g4
{[%clk 0:02:22.2]} 35... Nc3+ {[%clk 0:01:38.6]} 36. Kd4 {[%clk 0:02:21.6]}
36... Nb5+ {[%clk 0:01:38.2]} 37. Ke4 {[%clk 0:02:21.8]} 37... hxg4 {[%clk
0:01:37.1]} 38. hxg4 {[%clk 0:02:21.6]} 38... a5 {[%clk 0:01:35.9]} 39. f5+
{[%clk 0:02:21.8]} 39... gxf5+ {[%clk 0:01:35.7]} 40. gxf5+ {[%clk 0:02:22.7]}
40... Ke7 {[%clk 0:01:35.4]} 41. Kd5 {[%clk 0:02:22.8]} 41... Nc3+ {[%clk
0:01:34.4]} 42. Kd4 {[%clk 0:02:21.8]} 42... Ne2+ {[%clk 0:01:33.1]} 43. Kd5
{[%clk 0:02:21.8]} 43... Ng3 {[%clk 0:01:32.4]} 44. f6+ {[%clk 0:02:20.7]} 44...
Kd7 {[%clk 0:01:32.2]} 45. Kd4 {[%clk 0:02:18]} 45... Nf5+ {[%clk 0:01:31.5]}
46. Kd5 {[%clk 0:02:18.1]} 46... Ne3+ {[%clk 0:01:30.7]} 47. Ke4 {[%clk
0:02:17.8]} 47... Nc4 {[%clk 0:01:29.5]} 48. Kd5 {[%clk 0:02:17.7]} 48... Na3
{[%clk 0:01:25.5]} 49. Ke4 {[%clk 0:02:17.7]} 49... Ke6 {[%clk 0:01:24.7]} 50.
Kf4 {[%clk 0:02:16.2]} 50... Nc4 {[%clk 0:01:24.1]} 51. Ke4 {[%clk 0:02:16.4]}
51... Nxe5 {[%clk 0:01:24]} 52. Kf4 {[%clk 0:02:15.7]} 52... Kxf6 {[%clk
0:01:24]} 53. Ke4 {[%clk 0:02:16]} 53... Ke6 {[%clk 0:01:24]} 54. Kd4 {[%clk
0:02:16.3]} 54... Kd6 {[%clk 0:01:24.4]} 55. Kc3 {[%clk 0:02:17]} 55... Kc5
{[%clk 0:01:23.9]} 56. Kb3 {[%clk 0:02:17.9]} 56... f5 {[%clk 0:01:23.3]} 57.
Ka4 {[%clk 0:02:18.8]} 57... f4 {[%clk 0:01:22.8]} 58. Ka3 {[%clk 0:02:19.2]}
58... f3 {[%clk 0:01:22.7]} 59. Kb3 {[%clk 0:02:19.9]} 59... f2 {[%clk
0:01:22.3]} 60. Ka2 {[%clk 0:02:20.3]} 60... f1=R {[%clk 0:01:20.8]} 61. Kb3
{[%clk 0:02:20.7]} 61... b5 {[%clk 0:01:20.7]} 62. Ka3 {[%clk 0:02:20.7]} 62...
Rf3+ {[%clk 0:01:19]} 63. Kb2 {[%clk 0:02:21]} 63... Kb4 {[%clk 0:01:18.8]} 64.
Kc2 {[%clk 0:02:21.5]} 64... a4 {[%clk 0:01:16.5]} 65. Kd2 {[%clk 0:02:21.8]}
65... a3 {[%clk 0:01:15.7]} 66. Kc2 {[%clk 0:02:22.2]} 66... a2 {[%clk
0:01:14.2]} 67. Kd2 {[%clk 0:02:16.1]} 67... a1=Q {[%clk 0:01:11.2]} 68. Kc2
{[%clk 0:02:16.4]} 68... Rf2# {[%clk 0:01:09.5]} 0-1

[Event "Betsys MČR v online bleskovém šachu 2021"]
[Site "Chess.com"]
[Date "2021.04.17"]
[Round "12"]
[White "sachovybukowski"]
[Black "Tobish"]
[Result "1-0"]
[WhiteElo "1953"]
[BlackElo "1678"]
[TimeControl "180+1"]
[EndTime "10:59:13 PDT"]
[Termination "Uživatel sachovybukowski zvítězil matem"]

1. d4 {[%clk 0:03:00.9]} 1... d5 {[%clk 0:02:57.7]} 2. Bg5 {[%clk 0:03:00.9]}
2... Nf6 {[%clk 0:02:43.1]} 3. e3 {[%clk 0:02:58.7]} 3... Nbd7 {[%clk
0:02:36.5]} 4. f4 {[%clk 0:02:57.8]} 4... g6 {[%clk 0:02:36.4]} 5. Nf3 {[%clk
0:02:57]} 5... Bg7 {[%clk 0:02:36.8]} 6. c3 {[%clk 0:02:57.3]} 6... O-O {[%clk
0:02:36]} 7. Bd3 {[%clk 0:02:57.4]} 7... c5 {[%clk 0:02:33.3]} 8. O-O {[%clk
0:02:56.4]} 8... b6 {[%clk 0:02:32.6]} 9. Qe2 {[%clk 0:02:56.6]} 9... Bb7 {[%clk
0:02:32.8]} 10. Nbd2 {[%clk 0:02:56.7]} 10... Qc7 {[%clk 0:02:29.7]} 11. Rac1
{[%clk 0:02:53]} 11... e6 {[%clk 0:02:23]} 12. Ne5 {[%clk 0:02:49]} 12... Ne4
{[%clk 0:02:10.6]} 13. Bb5 {[%clk 0:02:41.3]} 13... Ndf6 {[%clk 0:02:03.3]} 14.
Nxe4 {[%clk 0:02:36.9]} 14... Nxe4 {[%clk 0:02:00.4]} 15. Bh4 {[%clk 0:02:35.5]}
15... a6 {[%clk 0:01:34.3]} 16. Bd3 {[%clk 0:02:34.6]} 16... Nf6 {[%clk
0:01:21.8]} 17. h3 {[%clk 0:02:31.8]} 17... Rac8 {[%clk 0:01:20.5]} 18. a3
{[%clk 0:02:30.7]} 18... c4 {[%clk 0:01:19]} 19. Bb1 {[%clk 0:02:29.9]} 19...
Nd7 {[%clk 0:01:16.4]} 20. Qg4 {[%clk 0:02:21.5]} 20... f5 {[%clk 0:01:12.3]}
21. Qe2 {[%clk 0:02:19.7]} 21... Nxe5 {[%clk 0:01:12.4]} 22. fxe5 {[%clk
0:02:18.6]} 22... h6 {[%clk 0:01:08]} 23. g4 {[%clk 0:02:07.8]} 23... Rf7 {[%clk
0:01:04.5]} 24. gxf5 {[%clk 0:02:07.1]} 24... gxf5 {[%clk 0:01:01.4]} 25. Kh1
{[%clk 0:02:06.6]} 25... Kh8 {[%clk 0:00:53.9]} 26. Rg1 {[%clk 0:02:06.2]} 26...
f4 {[%clk 0:00:41.8]} 27. exf4 {[%clk 0:01:52.8]} 27... Rxf4 {[%clk 0:00:40]}
28. Qh5 {[%clk 0:01:43.8]} 28... Rcf8 {[%clk 0:00:20]} 29. Qg6 {[%clk
0:01:42.5]} 29... Bxe5 {[%clk 0:00:19.7]} 30. Qxh6+ {[%clk 0:01:36.2]} 30... Qh7
{[%clk 0:00:19.3]} 31. Qxh7# {[%clk 0:01:35.9]} 1-0

[Event "Betsys MČR v online bleskovém šachu 2021"]
[Site "Chess.com"]
[Date "2021.04.17"]
[Round "12"]
[White "EliasD123"]
[Black "Z_u_z_i"]
[Result "1-0"]
[WhiteElo "1339"]
[BlackElo "1523"]
[TimeControl "180+1"]
[EndTime "10:59:16 PDT"]
[Termination "Uživatel EliasD123 zvítězil matem"]

1. e4 {[%clk 0:03:00.9]} 1... c5 {[%clk 0:02:59]} 2. Nf3 {[%clk 0:03:00.2]} 2...
e6 {[%clk 0:02:58.3]} 3. d4 {[%clk 0:03:00.3]} 3... cxd4 {[%clk 0:02:57.7]} 4.
Nxd4 {[%clk 0:03:00.8]} 4... Nc6 {[%clk 0:02:57.7]} 5. Nc3 {[%clk 0:03:00.3]}
5... a6 {[%clk 0:02:57.3]} 6. Be3 {[%clk 0:03:00]} 6... Bb4 {[%clk 0:02:55]} 7.
a3 {[%clk 0:02:57]} 7... Ba5 {[%clk 0:02:53.5]} 8. Nxc6 {[%clk 0:02:54.2]} 8...
bxc6 {[%clk 0:02:52.4]} 9. b4 {[%clk 0:02:52.9]} 9... Bc7 {[%clk 0:02:50.4]} 10.
Bd3 {[%clk 0:02:47.8]} 10... Ne7 {[%clk 0:02:49.5]} 11. Qd2 {[%clk 0:02:45.6]}
11... O-O {[%clk 0:02:48.2]} 12. f4 {[%clk 0:02:42.2]} 12... d5 {[%clk
0:02:47.5]} 13. e5 {[%clk 0:02:39.9]} 13... d4 {[%clk 0:02:46.9]} 14. Ne4 {[%clk
0:02:33.2]} 14... dxe3 {[%clk 0:02:46.3]} 15. Qxe3 {[%clk 0:02:32.5]} 15... Nd5
{[%clk 0:02:42.2]} 16. Qg3 {[%clk 0:02:25.7]} 16... h6 {[%clk 0:02:36.4]} 17.
O-O {[%clk 0:02:20.6]} 17... Bb6+ {[%clk 0:02:34.4]} 18. Kh1 {[%clk 0:02:19]}
18... Bb7 {[%clk 0:02:25]} 19. c4 {[%clk 0:02:12.6]} 19... Ne3 {[%clk
0:02:19.3]} 20. Rf3 {[%clk 0:01:49.8]} 20... Nf5 {[%clk 0:02:17.9]} 21. Qg4
{[%clk 0:01:41.4]} 21... Bd4 {[%clk 0:02:16.7]} 22. Raf1 {[%clk 0:01:37.8]}
22... Ne3 {[%clk 0:02:02.6]} 23. Nf6+ {[%clk 0:01:26.3]} 23... Kh8 {[%clk
0:01:59.9]} 24. Qh5 {[%clk 0:01:17.1]} 24... Nxf1 {[%clk 0:01:45.6]} 25. Rh3
{[%clk 0:00:54.2]} 25... Ne3 {[%clk 0:01:02.8]} 26. Qxh6+ {[%clk 0:00:52.4]}
26... gxh6 {[%clk 0:01:02.1]} 27. Rxh6+ {[%clk 0:00:52.1]} 27... Kg7 {[%clk
0:00:54.2]} 28. Rh7# {[%clk 0:00:52.1]} 1-0

[Event "Betsys MČR v online bleskovém šachu 2021"]
[Site "Chess.com"]
[Date "2021.04.17"]
[Round "12"]
[White "prosinec"]
[Black "g4g5g4g5"]
[Result "1-0"]
[WhiteElo "1782"]
[BlackElo "1995"]
[TimeControl "180+1"]
[EndTime "10:59:17 PDT"]
[Termination "Uživatel prosinec zvítězil po vzdání soupeře"]

1. Nf3 {[%clk 0:03:00.9]} 1... Nf6 {[%clk 0:02:59.2]} 2. c4 {[%clk 0:02:59.6]}
2... e6 {[%clk 0:02:52.7]} 3. Nc3 {[%clk 0:02:58.5]} 3... b6 {[%clk 0:02:50.8]}
4. g3 {[%clk 0:02:57.9]} 4... Bb7 {[%clk 0:02:50.9]} 5. Bg2 {[%clk 0:02:57.3]}
5... Be7 {[%clk 0:02:51.2]} 6. O-O {[%clk 0:02:56.1]} 6... O-O {[%clk 0:02:51]}
7. d4 {[%clk 0:02:55.7]} 7... Ne4 {[%clk 0:02:50.3]} 8. Re1 {[%clk 0:02:52.2]}
8... Nxc3 {[%clk 0:02:49.2]} 9. bxc3 {[%clk 0:02:53.1]} 9... f5 {[%clk
0:02:45.6]} 10. d5 {[%clk 0:02:46.7]} 10... Bf6 {[%clk 0:02:41.7]} 11. Qc2
{[%clk 0:02:33]} 11... g6 {[%clk 0:02:38.1]} 12. Bh6 {[%clk 0:02:25]} 12... Bg7
{[%clk 0:02:34.5]} 13. Bxg7 {[%clk 0:02:24.1]} 13... Kxg7 {[%clk 0:02:34.7]} 14.
dxe6 {[%clk 0:02:18.2]} 14... dxe6 {[%clk 0:02:34.1]} 15. Nd4 {[%clk 0:02:11.2]}
15... Bc8 {[%clk 0:02:11.7]} 16. Bxa8 {[%clk 0:02:09.5]} 16... e5 {[%clk
0:01:57.7]} 17. Nc6 {[%clk 0:02:04.2]} 17... Nxc6 {[%clk 0:01:56.2]} 18. Bxc6
{[%clk 0:02:05.1]} 18... f4 {[%clk 0:01:53.2]} 19. Rad1 {[%clk 0:01:56.5]} 19...
Qf6 {[%clk 0:01:52]} 20. Bf3 {[%clk 0:01:49.2]} 20... g5 {[%clk 0:01:47.1]} 21.
g4 {[%clk 0:01:39.8]} 21... h5 {[%clk 0:01:43.4]} 22. gxh5 {[%clk 0:01:22.7]}
22... g4 {[%clk 0:01:43.5]} 23. Bg2 {[%clk 0:01:12.7]} 23... Rh8 {[%clk
0:01:30.5]} 24. Qg6+ {[%clk 0:01:10.6]} 24... Qxg6 {[%clk 0:01:28.9]} 25. hxg6
{[%clk 0:01:11.5]} 25... Kxg6 {[%clk 0:01:28.2]} 26. Be4+ {[%clk 0:01:10]} 26...
Kf6 {[%clk 0:01:27.3]} 27. Rd5 {[%clk 0:01:01]} 27... Be6 {[%clk 0:01:25.8]} 28.
Rd2 {[%clk 0:00:44]} 28... Rg8 {[%clk 0:01:18.4]} 29. Bd5 {[%clk 0:00:38.4]}
29... Bf5 {[%clk 0:01:17.4]} 30. Bxg8 {[%clk 0:00:37.5]} 1-0

[Event "Betsys MČR v online bleskovém šachu 2021"]
[Site "Chess.com"]
[Date "2021.04.17"]
[Round "12"]
[White "Simaril76"]
[Black "Newyork6"]
[Result "1-0"]
[WhiteElo "713"]
[BlackElo "326"]
[TimeControl "180+1"]
[EndTime "10:59:17 PDT"]
[Termination "Uživatel Simaril76 zvítězil po vzdání soupeře"]

1. b3 {[%clk 0:02:57]} 1... Nc6 {[%clk 0:03:00.9]} 2. e3 {[%clk 0:02:54.9]} 2...
b6 {[%clk 0:03:00.8]} 3. Nf3 {[%clk 0:02:54.4]} 3... Bb7 {[%clk 0:02:57.8]} 4.
Bb2 {[%clk 0:02:54.9]} 4... d6 {[%clk 0:02:54.7]} 5. g3 {[%clk 0:02:55.3]} 5...
f6 {[%clk 0:02:43]} 6. Bg2 {[%clk 0:02:48.2]} 6... g6 {[%clk 0:02:43.8]} 7. O-O
{[%clk 0:02:47.4]} 7... Nh6 {[%clk 0:02:44.3]} 8. d4 {[%clk 0:02:45.1]} 8... Bg7
{[%clk 0:02:44.5]} 9. Nc3 {[%clk 0:02:42.8]} 9... O-O {[%clk 0:02:44.6]} 10. d5
{[%clk 0:02:42.4]} 10... e6 {[%clk 0:02:44.2]} 11. dxc6 {[%clk 0:02:41.1]} 11...
Bxc6 {[%clk 0:02:43.5]} 12. Na4 {[%clk 0:02:29.3]} 12... Bxf3 {[%clk 0:02:41.1]}
13. Bxf3 {[%clk 0:02:28.3]} 13... Nf5 {[%clk 0:02:37.4]} 14. Bg2 {[%clk
0:02:25.6]} 14... b5 {[%clk 0:02:31.7]} 15. Nc3 {[%clk 0:02:25.2]} 15... b4
{[%clk 0:02:23.3]} 16. Ne4 {[%clk 0:02:24.9]} 16... Rb8 {[%clk 0:02:20.4]} 17.
c3 {[%clk 0:02:23]} 17... Rb5 {[%clk 0:02:19.1]} 18. a3 {[%clk 0:02:16.2]} 18...
Rd5 {[%clk 0:02:19.8]} 19. Qe2 {[%clk 0:02:08.9]} 19... Rd1 {[%clk 0:02:16.1]}
20. Raxd1 {[%clk 0:02:07.3]} 20... e5 {[%clk 0:02:12]} 21. cxb4 {[%clk
0:02:04.5]} 21... d5 {[%clk 0:02:12.1]} 22. Nc5 {[%clk 0:02:01.1]} 22... Nxg3
{[%clk 0:02:10.1]} 23. hxg3 {[%clk 0:01:59.3]} 23... c6 {[%clk 0:02:00.2]} 24.
Ne6 {[%clk 0:01:59.3]} 24... Qc8 {[%clk 0:01:46.3]} 25. Nxf8 {[%clk 0:01:55.1]}
25... Qxf8 {[%clk 0:01:43.3]} 26. a4 {[%clk 0:01:52]} 26... c5 {[%clk
0:01:36.9]} 27. b5 {[%clk 0:01:49.3]} 27... a6 {[%clk 0:01:35.5]} 28. b6 {[%clk
0:01:47.9]} 28... Kh8 {[%clk 0:01:29.4]} 29. Qxa6 {[%clk 0:01:47]} 29... Qf7
{[%clk 0:01:21.1]} 30. Qa8+ {[%clk 0:01:42.7]} 30... Qf8 {[%clk 0:01:19.6]} 31.
Qxf8+ {[%clk 0:01:42]} 31... Bxf8 {[%clk 0:01:17.3]} 32. b7 {[%clk 0:01:42.4]}
32... Bd6 {[%clk 0:01:11.3]} 33. f4 {[%clk 0:01:39.2]} 33... exf4 {[%clk
0:01:07.4]} 34. gxf4 {[%clk 0:01:37.2]} 34... g5 {[%clk 0:01:05.7]} 35. Bxd5
{[%clk 0:01:33.1]} 35... gxf4 {[%clk 0:01:00.2]} 36. exf4 {[%clk 0:01:32.9]} 1-0

[Event "Betsys MČR v online bleskovém šachu 2021"]
[Site "Chess.com"]
[Date "2021.04.17"]
[Round "12"]
[White "pkozubik"]
[Black "Vitana"]
[Result "0-1"]
[WhiteElo "1196"]
[BlackElo "1734"]
[TimeControl "180+1"]
[EndTime "10:59:22 PDT"]
[Termination "Uživatel Vitana zvítězil matem"]

1. e4 {[%clk 0:03:00.9]} 1... e6 {[%clk 0:03:00.9]} 2. Nf3 {[%clk 0:02:58.6]}
2... d5 {[%clk 0:03:01.8]} 3. Nc3 {[%clk 0:02:51.2]} 3... Nf6 {[%clk 0:02:57.4]}
4. exd5 {[%clk 0:02:47.3]} 4... exd5 {[%clk 0:02:57]} 5. Be2 {[%clk 0:02:43.1]}
5... Be7 {[%clk 0:02:55.9]} 6. O-O {[%clk 0:02:42.3]} 6... O-O {[%clk
0:02:55.9]} 7. d4 {[%clk 0:02:42.6]} 7... c6 {[%clk 0:02:56.2]} 8. b3 {[%clk
0:02:39.7]} 8... Bg4 {[%clk 0:02:55.8]} 9. Bb2 {[%clk 0:02:39.4]} 9... Nbd7
{[%clk 0:02:55.6]} 10. Ne5 {[%clk 0:02:32.6]} 10... Bxe2 {[%clk 0:02:53.4]} 11.
Nxe2 {[%clk 0:02:28]} 11... Re8 {[%clk 0:02:51.9]} 12. f4 {[%clk 0:02:25.3]}
12... Ne4 {[%clk 0:02:50.9]} 13. Qd3 {[%clk 0:02:14.6]} 13... f6 {[%clk
0:02:45.2]} 14. Nxd7 {[%clk 0:02:10.8]} 14... Qxd7 {[%clk 0:02:44]} 15. c4
{[%clk 0:02:11.7]} 15... Bd6 {[%clk 0:02:37.6]} 16. Rae1 {[%clk 0:02:05.1]}
16... Rad8 {[%clk 0:02:34.2]} 17. f5 {[%clk 0:01:45.1]} 17... Qc7 {[%clk
0:02:28.2]} 18. Qh3 {[%clk 0:01:36.7]} 18... Bb4 {[%clk 0:02:19.6]} 19. Rd1
{[%clk 0:01:27.7]} 19... dxc4 {[%clk 0:02:12.6]} 20. bxc4 {[%clk 0:01:24.5]}
20... Nd2 {[%clk 0:02:09]} 21. Rf4 {[%clk 0:01:16.5]} 21... Rxe2 {[%clk
0:01:56.9]} 22. Rg4 {[%clk 0:01:00.9]} 22... Nxc4 {[%clk 0:01:46.3]} 23. d5
{[%clk 0:00:55.9]} 23... Nxb2 {[%clk 0:01:39.8]} 24. Rc1 {[%clk 0:00:28.7]}
24... Qb6+ {[%clk 0:01:33.9]} 25. Kh1 {[%clk 0:00:27]} 25... Qe3 {[%clk
0:01:22.8]} 26. Qxe3 {[%clk 0:00:19.9]} 26... Rxe3 {[%clk 0:01:22.4]} 27. dxc6
{[%clk 0:00:20.8]} 27... bxc6 {[%clk 0:01:21.5]} 28. Rxc6 {[%clk 0:00:20.7]}
28... Re1# {[%clk 0:01:20.7]} 0-1

[Event "Betsys MČR v online bleskovém šachu 2021"]
[Site "Chess.com"]
[Date "2021.04.17"]
[Round "12"]
[White "stripe122"]
[Black "machajda"]
[Result "0-1"]
[WhiteElo "1812"]
[BlackElo "2041"]
[TimeControl "180+1"]
[EndTime "10:59:29 PDT"]
[Termination "Uživatel machajda zvítězil po vzdání soupeře"]

1. e4 {[%clk 0:03:00.9]} 1... c5 {[%clk 0:03:00.4]} 2. Nf3 {[%clk 0:03:00.3]}
2... d6 {[%clk 0:03:01]} 3. d4 {[%clk 0:02:58.8]} 3... cxd4 {[%clk 0:03:01.9]}
4. Nxd4 {[%clk 0:02:59.2]} 4... Nf6 {[%clk 0:03:02.6]} 5. Nc3 {[%clk 0:02:59.5]}
5... a6 {[%clk 0:03:03.2]} 6. Be3 {[%clk 0:02:58.2]} 6... e5 {[%clk 0:03:03.1]}
7. Nb3 {[%clk 0:02:57.3]} 7... Be6 {[%clk 0:03:03.6]} 8. Qd2 {[%clk 0:02:47.5]}
8... Be7 {[%clk 0:03:03.9]} 9. f3 {[%clk 0:02:45.4]} 9... Qc7 {[%clk 0:03:00.4]}
10. O-O-O {[%clk 0:02:44.8]} 10... h5 {[%clk 0:02:59.2]} 11. Kb1 {[%clk
0:02:43.2]} 11... Nbd7 {[%clk 0:02:59.5]} 12. Nd5 {[%clk 0:02:40.7]} 12... Bxd5
{[%clk 0:02:58.7]} 13. exd5 {[%clk 0:02:40]} 13... O-O {[%clk 0:02:53]} 14. Be2
{[%clk 0:02:28.8]} 14... b5 {[%clk 0:02:51.7]} 15. g4 {[%clk 0:02:25.8]} 15...
Rfc8 {[%clk 0:02:49.3]} 16. c3 {[%clk 0:02:08.3]} 16... Nb6 {[%clk 0:02:42.3]}
17. Bxb6 {[%clk 0:02:07.4]} 17... Qxb6 {[%clk 0:02:43.2]} 18. g5 {[%clk
0:02:06.2]} 18... Nd7 {[%clk 0:02:40.3]} 19. Rhg1 {[%clk 0:02:04.4]} 19... a5
{[%clk 0:02:36.6]} 20. g6 {[%clk 0:02:04.1]} 20... f5 {[%clk 0:02:35.3]} 21. f4
{[%clk 0:01:56.2]} 21... a4 {[%clk 0:02:34]} 22. Nc1 {[%clk 0:01:54.9]} 22... a3
{[%clk 0:02:18.8]} 23. b3 {[%clk 0:01:51]} 23... Qc5 {[%clk 0:02:08.2]} 24. fxe5
{[%clk 0:01:44.3]} 24... Nxe5 {[%clk 0:02:06.9]} 25. Bxh5 {[%clk 0:01:42.6]}
25... Qxc3 {[%clk 0:02:04.9]} 26. Qxc3 {[%clk 0:01:34.3]} 26... Rxc3 {[%clk
0:02:05.8]} 27. Ne2 {[%clk 0:01:33.5]} 27... Rh3 {[%clk 0:02:03.9]} 28. Nf4
{[%clk 0:01:32.7]} 28... Rxh2 {[%clk 0:01:55]} 29. Rh1 {[%clk 0:01:29.7]} 29...
Rxh1 {[%clk 0:01:52.5]} 30. Rxh1 {[%clk 0:01:27.4]} 30... Rc8 {[%clk 0:01:50.4]}
31. Rc1 {[%clk 0:01:21.7]} 31... Rxc1+ {[%clk 0:01:49]} 32. Kxc1 {[%clk
0:01:20.8]} 32... Bg5 {[%clk 0:01:49.5]} 33. Kc2 {[%clk 0:01:16.4]} 33... Bxf4
{[%clk 0:01:49.3]} 34. Kc3 {[%clk 0:01:15.6]} 34... Kf8 {[%clk 0:01:31.5]} 35.
Kb4 {[%clk 0:01:11.8]} 35... Ke7 {[%clk 0:01:30.8]} 36. Kxb5 {[%clk 0:01:11.8]}
36... Kd7 {[%clk 0:01:29.8]} 37. Ka4 {[%clk 0:01:11]} 37... Bc1 {[%clk
0:01:28.9]} 38. Kb4 {[%clk 0:01:10.2]} 38... Kc7 {[%clk 0:01:28.8]} 39. Kc3
{[%clk 0:01:09.3]} 39... Kb6 {[%clk 0:01:26.4]} 40. Kd4 {[%clk 0:01:08.4]} 40...
Bb2+ {[%clk 0:01:25.3]} 41. Ke3 {[%clk 0:01:07.4]} 41... Kc5 {[%clk 0:01:24.6]}
42. Kf4 {[%clk 0:01:07.3]} 42... Kxd5 {[%clk 0:01:21.9]} 43. Kxf5 {[%clk
0:01:07.8]} 43... Nc6 {[%clk 0:01:19.1]} 44. Bf3+ {[%clk 0:01:06.2]} 44... Kc5
{[%clk 0:01:18.8]} 45. Ke6 {[%clk 0:01:05.4]} 45... Nb4 {[%clk 0:01:17]} 0-1